Cogmind - Beta 9.2 @@@ ROGUE MODE // 2019.12.09 @ 02:12:45 Player: Trione Result: Destroyed by as-41222 with Assembled Maul Performance ------------- Evolutions (0) 0 Regions Visited (4) 800 Robots Destroyed (32) 160 Value Destroyed (394) 394 Prototype IDs (22) 440 Alien Tech Used (0) 0 Bonus (98) 98 TOTAL SCORE: 1892 Bonus ------- Aligned with FarCom 300 Friendly Fire -202 Cogmind --------- Core Integrity 0/250 Matter 278/300 Energy 250/250 System Corruption 1% Temperature Cool (20) Movement Treading (160) Location -9/Mines Parts ------- > --- POWER (1) -------- Ion Engine > --- PROPULSION (2) --- Light Treads Light Treads > --- UTILITY (2) ------ Small Storage Unit Large Storage Unit > --- WEAPON (2) ------- Light Cannon > --- INVENTORY (12) --- Light Ion Engine Wheel Compact Wheel Experimental Sensor Array Light Armor Plating AWS/Thermal Assault Rifle AWS/Gauss Datajack Field Lobotomy Kit Peak State ------------ > --- POWER ------------ Ion Engine > --- PROPULSION ------- Light Treads Light Treads > --- UTILITY ---------- Small Storage Unit Large Storage Unit > --- WEAPON ----------- Assault Rifle Light Cannon > --- INVENTORY -------- Light Ion Engine Wheel Compact Wheel Experimental Sensor Array Light Armor Plating AWS/Thermal AWS/Gauss Grenade Launcher Datajack Field Lobotomy Kit [Rating: 12] Favorites ----------- Power Ion Engine Engine Ion Engine Propulsion Light Treads Treads Light Treads Wheel Wheel Utility Small Storage Unit Storage Small Storage Unit Weapon Light Cannon Energy Gun Small Laser Ballistic Gun Assault Rifle Ballistic Cannon Light Cannon Launcher Grenade Launcher Build | -11 -10 -10 -10 -9 ------- Run | Scr Mat Min Exi Min Slots Evolved . | . . . . . Power . | . . . . . Propulsion . | . . . . . Utility . | . . . . . Weapon . | . . . . . Parts Attached 23 | 6 16 . . 1 Power 2 | 1 1 . . . Engine 2 | 1 1 . . . Core . | . . . . . Reactor . | . . . . . Propulsion 4 | 2 2 . . . Treads 2 | . 2 . . . Leg . | . . . . . Wheel 2 | 2 . . . . Hover . | . . . . . Flight . | . . . . . Utility 3 | 1 2 . . . Device . | . . . . . Storage 3 | 1 2 . . . Processor . | . . . . . Hackware . | . . . . . Protection . | . . . . . Artifact . | . . . . . Weapon 14 | 2 11 . . 1 Energy Gun 5 | 2 3 . . . Energy Cannon . | . . . . . Ballistic Gun 1 | . 1 . . . Ballistic Cannon 3 | . 3 . . . Launcher 5 | . 4 . . 1 Special Weapon . | . . . . . Impact Weapon . | . . . . . Slashing Weapon . | . . . . . Piercing Weapon . | . . . . . Special Melee Weapon . | . . . . . Unidentified Prototypes . | . . . . . Parts Lost 6 | . 5 . . 1 Power 1 | . 1 . . . Propulsion 1 | . 1 . . . Utility . | . . . . . Weapon 4 | . 3 . . 1 Highest Loss Streak 2 | . 2 . . 1 Average Slot Usage (%) 97 | . 92 100 100 100 Engine 13 | . 13 14 14 14 Treads 26 | . 24 28 28 28 Wheel 1 | . 3 . . . Storage 25 | . 21 28 28 28 Energy Gun 3 | . 8 . . . Ballistic Gun 8 | . . 14 14 13 Ballistic Cannon 14 | . 14 14 14 14 Launcher 1 | . 4 . . . Naked Turns . | . . . . . Heaviest Build 31 | 9 31 30 30 30 Greatest Support 40 | 26 40 40 40 40 Greatest Overweight (x) . | . . . . . Average Overweight (x) . | . . . . . Largest Inventory Capacity 12 | 6 12 12 12 12 Average Capacity 10 | 4 8 12 12 12 Most Carried 12 | 6 8 10 12 12 Average Carried 8 | 3 6 9 10 11 Final Capacity 12 | 6 12 12 12 12 Final Carried 12 | 6 8 10 12 12 Class Distribution -------------------- 100% | Mutant Dominant Class ---------------- Mutant | -10/Materials Mutant | -10/Mines Mutant | -10/Exiles Mutant | -9/Mines Resources | -11 -10 -10 -10 -9 ----------- Run | Scr Mat Min Exi Min Matter Collected 752 | 260 216 276 . . Remotely . | . . . . . Salvage Created 691 | 80 365 220 . 26 Parts 46 | 3 30 12 . 1 Haulers Intercepted 2 | . 2 . . . Recyclers Shooed . | . . . . . Parts Field Recycled . | . . . . . Retrieved Matter . | . . . . . Parts Self-Destructed . | . . . . . Prevented . | . . . . . Kills | -11 -10 -10 -10 -9 ------- Run | Scr Mat Min Exi Min Combat Hostiles Destroyed 19 | . 12 2 . 5 Guns 3 | . 2 1 . . Cannons 5 | . 4 1 . . AOE 11 | . 6 . . 5 Classes Destroyed 10 | 1 6 1 . 2 Worker 1 | . . 1 . . Builder 2 | . 2 . . . Tunneler 3 | . 1 2 . . Hauler 2 | . 2 . . . Recycler 2 | 1 . 1 . . Watcher 1 | . 1 . . . Swarmer 8 | . 6 2 . . Grunt 6 | . 6 . . . Zionite 1 | . . . . 1 Assembled 5 | . . . . 5 Thug 1 | . . 1 . . Best Kill Streak 8 | 1 8 2 . 5 Combat Bots Only 5 | . 4 2 . 5 Max Kills in Single Turn 3 | 1 2 1 . 3 Gunslinging . | . . . . . Exploded 3 | . 2 . . 3 Melee . | . . . . . Uniques/NPCs Destroyed . | . . . . . Combat | -11 -10 -10 -10 -9 -------- Run | Scr Mat Min Exi Min Damage Taken 1087 | . 695 26 . 366 Core 265 | . 120 . . 145 Absorbed by Shields . | . . . . . Core Remaining (%) 100 | 100 . . . . Volleys Fired 65 | 2 45 16 . 2 Largest 2 | 2 2 2 . 1 Hottest 80 | 80 80 55 . 30 Shots Fired 113 | 4 75 32 . 2 Gun 53 | 4 33 16 . . Cannon 46 | . 30 16 . . Launcher 14 | . 12 . . 2 Special . | . . . . . Kinetic 62 | . 30 32 . . Thermal 30 | 4 26 . . . Explosive 14 | . 12 . . 2 Electromagnetic 7 | . 7 . . . Robot Hit Streak 5 | 2 5 5 . 1 Robot Miss Streak 4 | 1 4 4 . 1 Penetration Max . | . . . . . Secondary Targets 1 | . 1 . . . Max Gunslinging Chain 1 | . 1 . . . Shots Hit Robots 57 | 2 36 18 . 1 Core Hits 53 | 2 26 9 . 16 Critical Hits 1 | . 1 . . . Critical Kills 1 | . 1 . . . Critical Parts Destroyed . | . . . . . Melee Attacks . | . . . . . Impact . | . . . . . Slashing . | . . . . . Piercing . | . . . . . Sneak Attacks . | . . . . . Combat Hostiles . | . . . . . Follow-up Attacks . | . . . . . Damage Inflicted 1721 | 31 1135 288 . 267 Guns 359 | 31 205 123 . . Cannons 397 | . 232 165 . . Explosions 964 | . 698 . . 266 Melee . | . . . . . Ramming 1 | . . . . 1 Kinetic 520 | . 232 288 . . Thermal 157 | 31 126 . . . Explosive 964 | . 698 . . 266 Electromagnetic 79 | . 79 . . . Impact . | . . . . . Slashing . | . . . . . Piercing . | . . . . . Highest Corruption 1 | . . . . 1 Average Corruption 1 | . . . . 1 Corruption Purged . | . . . . . Overload Shots . | . . . . . Overflow Damage 26 | . 26 . . . Projectiles . | . . . . . Explosions 26 | . 26 . . . Melee . | . . . . . Knockbacks 3 | . . 3 . . Impact . | . . . . . Kinetic 3 | . . 3 . . Secondary . | . . . . . Self-Inflicted Damage 87 | . 26 . . 61 Shots 4 | . 2 . . 2 Rammed 1 | . . . . 1 Targets Rammed 1 | . . . . 1 Kicked . | . . . . . Crushed . | . . . . . Highest Temperature 238 | 36 238 . . 15 Average Temperature 59 | 20 63 . . 7 Received Heat Transfer 325 | . 225 . . 100 Siege Activations . | . . . . . Robots Corrupted . | . . . . . Combat Hostiles . | . . . . . Parts Fried . | . . . . . Impact Corruptions . | . . . . . Robots Melted . | . . . . . Combat Hostiles . | . . . . . Parts Melted . | . . . . . Heat Transferred 375 | 75 300 . . . Parts Sabotaged . | . . . . . Parts Stolen . | . . . . . Parts Stripped . | . . . . . Power Chain Reactions . | . . . . . Missiles Intercepted . | . . . . . Alert | -11 -10 -10 -10 -9 ------- Run | Scr Mat Min Exi Min Peak Influence 228 | 5 228 70 . 15 Average Influence 47 | 1 88 13 . . Maximum Alert Level 1 | . 1 . . . Low Security (%) 92 | 100 84 100 . 100 Level 1 7 | . 15 . . . Level 2 . | . . . . . Level 3 . | . . . . . Level 4 . | . . . . . Level 5 . | . . . . . High Security . | . . . . . Max Security . | . . . . . Squads Dispatched 2 | . 2 . . . Investigation 2 | . 2 . . . Extermination . | . . . . . Reinforcement . | . . . . . Assault . | . . . . . Garrison . | . . . . . Intercept . | . . . . . Construction Impeded . | . . . . . Haulers Reinforced . | . . . . . Stealth | -11 -10 -10 -10 -9 --------- Run | Scr Mat Min Exi Min Distress Signals 4 | . 4 . . . Communications Jammed . | . . . . . Distress Signals . | . . . . . Times Spotted 40 | . 18 3 . 19 Peak Tracking Total 14 | . 6 3 . 14 Tactical Retreats 1 | . 1 . . . Traps | -11 -10 -10 -10 -9 ------- Run | Scr Mat Min Exi Min Traps Triggered 3 | . 3 . . . Indirectly . | . . . . . Trap Hack Attempts . | . . . . . Triggered . | . . . . . Disarmed . | . . . . . Reprogrammed . | . . . . . Reused . | . . . . . Traps Extracted . | . . . . . Installed . | . . . . . Triggered . | . . . . . Exploded 1 | . . . 1 . Machines | -11 -10 -10 -10 -9 ---------- Run | Scr Mat Min Exi Min Machines Disabled 2 | . 2 . . . Max in Single Turn 2 | . 2 . . . Machines Sabotaged . | . . . . . Garrisons Compromised . | . . . . . Overloaded Fab Kills . | . . . . . Fab Network Shutdowns . | . . . . . Hacking | -11 -10 -10 -10 -9 --------- Run | Scr Mat Min Exi Min Machines Accessed 3 | . 2 . 1 . Terminals 2 | . 2 . . . Fabricators . | . . . . . Repair Stations . | . . . . . Recycling Units . | . . . . . Scanalyzers . | . . . . . Garrison Access . | . . . . . Total Hacks 5 | . 4 . 1 . Successful 4 | . 3 . 1 . Failed 1 | . 1 . . . Catastrophic . | . . . . . Database Lockouts . | . . . . . Manual 5 | . 4 . 1 . Terminals 4 | . 4 . . . Fabricators . | . . . . . Repair Stations . | . . . . . Recycling Units . | . . . . . Scanalyzers . | . . . . . Garrison Access . | . . . . . Terminal Hacks 2 | . 1 . 1 . Zone Layout 1 | . 1 . . . EX-Prototype ID Bank 1 | . . . 1 . Fabricator Hacks . | . . . . . Repair Station Hacks . | . . . . . Recycling Unit Hacks . | . . . . . Scanalyzer . | . . . . . Garrison Access Hacks . | . . . . . Unauthorized Hacks 4 | . 4 . . . Terminals 2 | . 2 . . . Track 2 | . 2 . . . Fabricators . | . . . . . Repair Stations . | . . . . . Recycling Units . | . . . . . Scanalyzers . | . . . . . Garrison Access . | . . . . . Data Cores Recovered . | . . . . . Used . | . . . . . Hacking Detections 1 | . 1 . . . Full Trace Events . | . . . . . Feedback Events . | . . . . . Feedback Blocked . | . . . . . Robot Schematics Acquired . | . . . . . Robots Built . | . . . . . Matter . | . . . . . Time . | . . . . . Total Robot Build Rating . | . . . . . Part Schematics Acquired . | . . . . . Parts Built . | . . . . . Matter . | . . . . . Time . | . . . . . Total Part Build Rating . | . . . . . Parts Repaired . | . . . . . Time . | . . . . . Parts Recycled . | . . . . . Recycled Matter . | . . . . . Retrieved Matter . | . . . . . Retrieved Components . | . . . . . Parts Scanalyzed . | . . . . . Part Schematics Acquired . | . . . . . Parts Damaged . | . . . . . Bothacking | -11 -10 -10 -10 -9 ------------ Run | Scr Mat Min Exi Min Used RIF Installer . | . . . . . Robots Hacked . | . . . . . Non-combat . | . . . . . Combat . | . . . . . Robot Hacks Applied . | . . . . . Relay Couplers Released . | . . . . . Robots Rewired . | . . . . . Allies Hacked . | . . . . . Hacks Repelled . | . . . . . Allies | -11 -10 -10 -10 -9 -------- Run | Scr Mat Min Exi Min Total Allies . | . . . . . Largest Group . | . . . . . Highest-Rated Group . | . . . . . Highest-Rated Ally . | . . . . . Total Orders . | . . . . . Ally Attacks . | . . . . . Total Damage . | . . . . . Kills . | . . . . . Allies Corrupted . | . . . . . Allies Melted . | . . . . . Intel | -11 -10 -10 -10 -9 ------- Run | Scr Mat Min Exi Min Robot Analysis Total . | . . . . . Derelict Logs Recovered 2 | . . 1 . 1 Drone Launches . | . . . . . Drone Recoveries . | . . . . . Exploration | -11 -10 -10 -10 -9 ------------- Run | Scr Mat Min Exi Min Turns Passed 3247 | 61 1236 1149 594 207 Spaces Moved 1963 | 46 749 677 369 122 Core 4 | 4 . . . . Treads 1760 | . 592 677 369 122 Legs . | . . . . . Wheels 199 | 42 157 . . . Hover . | . . . . . Flight . | . . . . . Fastest Speed 50 | 50 90 160 160 160 Average Speed 152 | 85 145 160 160 160 Slowest Speed 160 | 90 160 160 160 160 Overloaded Moves . | . . . . . Propulsion Burnouts . | . . . . . Robots Hopped . | . . . . . Cave-ins Triggered . | . . . . . Exploration Rate (%) 56 | 4 90 98 70 21 Regions Visited 4 Branch Regions 3 Pre-discovered Areas 1 | . . 1 . . Known Exits Taken . | . . . . . Unknown Exits Taken 4 | 1 1 1 1 . Scrap Searched 2 | . . 2 . . Spaces Dug 18 | . 18 . . . Terrain Destroyed 86 | . 64 . . 22 Melee . | . . . . . Projectile . | . . . . . AOE 86 | . 64 . . 22 Actions | -11 -10 -10 -10 -9 --------- Run | Scr Mat Min Exi Min Total 2096 | 61 818 711 374 132 Wait 21 | . . 17 . 4 Move 1959 | 45 748 676 368 122 Hop . | . . . . . Pick Up 19 | 8 5 2 3 1 Fast Attach 8 | 4 4 . . . Attach 6 | 2 4 . . . Detach 2 | . 2 . . . Swap 9 | . 8 . . 1 Drop 6 | . 2 . 3 1 Fire 65 | 2 45 16 . 2 Melee . | . . . . . Ram . | . . . . . Kick . | . . . . . Crush 1 | . . . . 1 Escape Stasis . | . . . . . Rewire . | . . . . . Trap . | . . . . . Miscellaneous . | . . . . . Route ------- -11/Scrapyard -10/Materials (discovered 5 exits: [*Mat x3] / [*Min x2]) -10/Mines (discovered 3 exits: [*Mat x2] / *Exi) -10/Exiles -9/Mines History --------- Turn | Location | Event 13 | -11/Scrapyard | Discovered new exit (range 15) 62 | -11/Scrapyard | Entered Materials 130 | -10/Materials | Discovered new exit (range 8) 312 | -10/Materials | Discovered new exit (range 8) 323 | -10/Materials | Build established: Mutant 378 | -10/Materials | Discovered new exit (range 8) 486 | -10/Materials | Discovered new exit (range 7) 960 | -10/Materials | Discovered new exit (range 12) 1298 | -10/Materials | Entered Mines 1337 | -10/Mines | Met a Derelict bent on vengeance 1589 | -10/Mines | Discovered new exit (range 6) 1663 | -10/Mines | Deemed a non-threat by the Exiles lab entrance 1889 | -10/Mines | Learned Materials emergency access door positions 1955 | -10/Mines | Learned location of Storage (-8) 2140 | -10/Mines | Discovered new exit (range 7) 2441 | -10/Mines | Discovered new exit (range 5) 2447 | -10/Mines | Entered Exiles 2486 | -10/Exiles | Met 8R-AWN 2513 | -10/Exiles | Met EX-HEX 2574 | -10/Exiles | Met EX-DEC 2799 | -10/Exiles | Met EX-BIN 2819 | -10/Exiles | Aligned with FarCom system 2820 | -10/Exiles | Given EX-Vault access code 2859 | -10/Exiles | Opened EX-Vault 2871 | -10/Exiles | Found AWS/Gauss 2877 | -10/Exiles | Found AWS/Thermal 2880 | -10/Exiles | Found Field Lobotomy Kit 2914 | -10/Exiles | Warned to stay clear of 0b10 Research branches 2928 | -10/Exiles | Exiles lab attacked by MAIN.C 3018 | -10/Exiles | Discovered new exit (range 11) 3041 | -10/Exiles | Stole three prototypes: AWS/Thermal, AWS/Gauss, Field Lobotomy Kit 3041 | -10/Exiles | Entered Mines 3199 | -9/Mines | Found a damaged Exp. Sensor Array with a note attached 3206 | -9/Mines | Found Prototype Device 3218 | -9/Mines | Learned location of 1 exit from Materials 3219 | -9/Mines | Assembled infested the area 3229 | -9/Mines | Core integrity fell below 50% 3242 | -9/Mines | Core integrity fell below 20% 3248 | -9/Mines | Destroyed by as-41222 with Assembled Maul Last Messages --------------- top of us... With this we can! Deliver it to Megawrench for repairs then we'll never be afraid of an ambush while sneaking around Materials again, ha." 03205_ Dropped Assault Rifle. 03206_ Acquired Prototype Device. 03218_ Acquired derelict log, extracted data. Data stored: Materials exits (x1). 03219_ ALERT: Infestation in the mines, dispatching Demolisher response squad. 03236_ as-72049 destroyed. 03236_ as-75839 destroyed. 03236_ 5L-KAT destroyed. 03238_ as-94680 destroyed. 03238_ as-49360 destroyed. 03238_ as-62702 destroyed. 03240_ Grenade Launcher destroyed. 03240_ System corrupted by crushing effect (+1). 03245_ as-98122 sneak attacks. 03245_ R-06 Scavenger destroyed. 03248_ Slammed into as-41500. Map ----- +----------------------------------------------------+ | ?????????????????????????????????????????????????? | | ####?????????????????????????????????????????????? | | # ?????????????????????????????????????????????? | | # #?????????????????????????????????????????????? | | ?# #?????????????????????????????????????????????? | | ?# ###???????????????????????????????????????????? | | ?# #???????????????????????????????????????????? | | ?### ###?????????????????????????????????????????? | | ???# #?????????????????????????????????????????? | | ???### #?????????????????????????????????????????? | | ?????# #????????????????#????????????????????????? | | ?????# #####???????????# ????????????????????????? | | ?#???# #?????? ## ????????????????????????? | | ? ##?##### #?????? ????????????????????????? | | ? ?????# #?????? C ????????????????????????? | | ? ?????# #?????? ? ????????????????????????? | | ? ?????# #??????# ? ????????????????????????? | | ?# ?????# ######## #? ##??????????????????????? | | ?# #????## #?? ##?????????????????????? | | ?# #?#### ###### #?? ??????????????????????? | | ## ### l #????# #?? ??????????????????????? | | # gg ###???## ##?# ??????????????????????? | | # ## ###????## #?# #??????????????????????? | | # ### ##?????## #?# #??????????????????????? | | # ######?????## ### #######????????????????? | | ####### ##@a ##???????????????? | | aaa[a #???????????????? | | ###### aaaa % #???????????????? | | #????############ ##a % #???????????????? | | #???????????????## ### aa #???????????????? | | ##????????????????# #?## ??????????????? | | ??????????????????# #??# a ????????????? | | ??????????????????# #? ! ! ??????????? | | ??????????????????# #?# ] ####?????????? | | ??????????????????## ##?## !####????????????? | | ???????????????????######???## ##???????????????? | | ??????????????????????????????###????????????????? | | ?????????????????????????????????????????????????? | | ?????????????????????????????????????????????????? | | | | | | | | | | | | | | | | | | | | | | | +----------------------------------------------------+ Best States ------------- Heat Dissipation 25 Energy Generation 10 Energy Capacity 250 Matter Stores 300 Matter Capacity 300 Sight Range 16 Terrain Scan Density 10 Evasion (%) 42 Recoil Reduction 2 Item Schematics ----------------- None Robot Schematics ------------------ None Fabricated ------------ Nothing Alien Tech Used ----------------- None Achievements -------------- None Challenges ------------ None Game ------ Seed NodeMachineEdition Manual? 0 Play Time 00:16:02 Cumulative 848.2 hours Start 2019.12.09 @ 01:57:42 End 2019.12.09 @ 02:12:45 Sessions 1 Manual Loads 0 Difficulty Rogue Special Mode None Game No. 334 Rogue 334 Adventurer 0 Explorer 0 Win Type - Total 21 Types 11/1/7/0/0/0/2 Lore% 95 Gallery% 96 Achievement% 80 Wizard Run 0 Options --------- ASCII 0 Keyboard 0 Movement Vi Keybinds 0 Fullscreen 0 Font 12/Crisp Map View 76x50 Tactical HUD 1 Map Filters NONE Filters NONE Steam 1 RUN: 54ec9085-2cc2-43e3-9f0e-002cc83c8b62